bitfinex/quotes_ETHUSD_20250815
["timestamp","ask_amount","ask_price","bid_price","bid_amount"]
[1755272754950,0.1128,4422.7,4422.2,2.26131789]
[1755272755168,0.002,4422.8,4422.6,2.26106867]
[1755272755475,4.2162,4422.7,4422.4,2.37396518]
[1755272755679,4.2162,4422.7,4422.4,0.1128]
[1755272755839,4.2162,4422.7,4421.3,0.001]
[1755272755840,4.6493,4422.7,4421.3,0.001]
[1755272756046,0.1128,4422.3,4421.5,0.1128]
[1755272756488,0.1128,4422.3,4422.0,2.26140222]
[1755272756665,0.1128,4422.3,4421.3,0.001]
[1755272756666,4.214,4422.2,4421.3,0.001]
[1755272756867,0.1128,4421.8,4421.3,0.001]
[1755272757455,4.209,4421.7,4421.3,0.001]
[1755272758279,4.204,4421.6,4421.3,0.001]
[1755272760582,2.28050815,4421.5,4421.3,0.001]
[1755272760753,0.47183924,4421.5,4421.3,0.001]
[1755272760952,0.46758392,4421.5,4421.3,0.001]
[1755272761164,2.28055886,4421.4,4421.3,0.001]
[1755272761482,4.0,4421.4,4421.3,0.001]
[1755272761669,8.187,4421.4,4421.3,0.001]
[1755272761879,4.0,4421.4,4421.3,2.69927821]
[1755272762070,4.0,4421.4,4421.3,4.87189237]
[1755272762458,4.188,4421.8,4421.7,2.2615736]
[1755272762660,4.002,4421.8,4421.7,4.3745736]
[1755272762972,0.002,4421.8,4421.7,4.3745736]
[1755272763549,1e-08,4421.8,4421.7,4.3745736]
[1755272763762,1e-08,4423.0,4422.9,2.26096]
[1755272764203,0.002,4424.1,4422.0,2.26142017]
[1755272764204,0.002,4424.1,4424.0,2.26039783]
[1755272764406,4.002,4424.1,4422.5,0.55]
[1755272764592,4.002,4424.1,4422.6,2.113]
[1755272764792,4.20683181,4424.0,4422.6,0.4365]
[1755272765102,4.188,4424.0,4423.4,2.26069758]
[1755272765312,4.0,4423.9,4422.8,1.6765]
[1755272765600,4.0,4423.9,4422.4,0.4365]
[1755272765770,4.49075424,4423.9,4422.4,0.4365]
[1755272765974,4.187,4423.8,4423.1,2.26084528]
[1755272766162,4.0,4423.9,4422.7,0.4467]
[1755272766409,4.189,4423.8,4423.5,2.26064412]
[1755272766585,4.189,4423.8,4423.2,2.26078563]
[1755272766766,4.0,4423.9,4423.7,2.26055112]
[1755272766970,0.002,4424.1,4424.0,2.26039783]
[1755272767184,4.002,4424.1,4424.0,2.26039783]
[1755272767377,4.002,4424.1,4424.0,2.70709783]
[1755272767608,0.002,4424.1,4423.3,0.4467]
[1755272767914,4.186,4424.0,4423.8,2.26049867]
[1755272768201,4.186,4424.0,4423.9,2.26044892]
[1755272768700,4.186,4424.0,4423.7,2.26055111]
[1755272769024,0.01883181,4423.9,4422.7,0.4467]
[1755272769242,4.0,4423.9,4422.9,2.26091079]
[1755272769552,2.26075738,4423.3,4422.2,2.26126706]
[1755272769702,2.26060676,4423.6,4421.6,0.4467]
[1755272769703,5.431,4423.2,4421.6,0.4467]
[1755272769906,0.1128,4422.8,4422.2,0.1128]
[1755272770120,5.431,4423.2,4422.2,0.1128]
[1755272770343,4.183,4423.1,4422.1,1.6301]
[1755272770545,4.183,4423.1,4423.0,2.26090888]
[1755272770844,4.0,4423.9,4423.1,2.26085776]
[1755272771042,4.0,4423.9,4423.4,2.26070443]
[1755272771229,0.002,4424.1,4424.0,2.26039783]
[1755272771842,2.21470028,4426.1,4424.0,2.26039783]
[1755272771843,6.02090028,4427.1,4424.1,0.55]
[1755272772005,4.184,4427.0,4425.9,2.25940369]
[1755272772204,4.184,4427.0,4426.1,2.37212536]
[1755272772523,4.184,4427.0,4426.1,2.25932536]
[1755272772719,5.431,4427.1,4426.1,2.25932536]
[1755272772922,5.431,4427.1,4426.1,4.33612536]
[1755272773241,0.002,4427.8,4427.7,2.25850893]
[1755272773603,0.002,4427.8,4427.7,4.35789401]
[1755272773842,0.002,4427.8,4427.7,2.70520893]
[1755272774015,0.002,4427.8,4427.7,4.33530893]
[1755272774641,0.002,4427.8,4427.7,2.25850893]
[1755272774842,0.002,4427.8,4427.7,4.33530893]
[1755272775254,0.002,4428.2,4427.9,2.25838764]
[1755272775255,1e-08,4428.2,4427.9,2.25838764]
[1755272775501,1e-08,4428.2,4428.1,2.25830491]
[1755272775809,1e-08,4428.2,4428.1,4.33510491]
[1755272776067,1e-08,4428.2,4427.2,0.4467]
[1755272776219,0.41770001,4428.2,4427.2,0.2867]
[1755272776422,0.43653182,4428.2,4426.5,1.6301]
[1755272776946,2.06133182,4428.2,4427.1,2.25881128]
[1755272777108,0.41770001,4428.2,4427.4,2.25866023]
[1755272777309,0.41770001,4428.2,4427.3,1.6301]
[1755272777310,1e-08,4428.2,4427.3,1.6301]
[1755272777832,4.0,4428.1,4426.4,1.6301]
[1755272778134,4.0,4428.1,4424.4,0.1082]
[1755272778135,3.58990028,4427.9,4424.6,1.6301]
[1755272778444,3.58990028,4427.9,4424.8,2.25994154]
[1755272778445,2.25917244,4426.4,4424.8,2.25994154]
[1755272778660,4.191,4426.7,4426.2,2.25926167]
[1755272778813,4.191,4426.7,4425.6,0.4467]
[1755272779009,6.92734321,4427.8,4425.7,1.6301]
[1755272779238,4.19,4427.7,4425.8,0.65438]
[1755272779409,5.428,4427.8,4425.9,2.25942746]
[1755272779611,4.189,4427.7,4426.1,2.25932536]
[1755272780043,5.428,4427.8,4426.0,2.25934725]
[1755272780311,4.0,4428.1,4426.3,0.55]
[1755272780507,4.0,4428.1,4426.4,2.0768]
[1755272780747,4.0,4428.1,4426.5,2.2591212]
[1755272780947,4.0,4428.1,4428.0,2.25835591]
[1755272781146,1e-08,4428.2,4428.1,2.25830491]
[1755272781349,1e-08,4428.2,4428.1,4.33510491]
[1755272781912,30.0,4428.1,4422.5,1.6301]
[1755272782161,3.0,4426.5,4423.5,0.00685638]
[1755272782359,3.0,4426.5,4421.8,2.26150716]
[1755272782360,0.1128,4424.7,4424.0,0.1128]
[1755272782524,1.6248,4425.1,4423.9,0.1128]
[1755272782712,0.1128,4424.8,4424.0,0.0008]
[1755272782910,0.01883181,4424.7,4424.0,0.0008]
[1755272783634,0.1128,4424.1,4424.0,0.0008]
[1755272783837,1.6248,4425.1,4424.0,0.0008]
[1755272784057,0.1128,4424.6,4424.0,0.1136]
[1755272784243,0.01883181,4425.0,4424.0,0.0008]
[1755272784244,0.1128,4424.1,4424.0,0.0008]
[1755272785653,0.1128,4424.4,4424.0,0.0008]
[1755272786652,2.26034673,4424.1,4424.0,0.0008]
[1755272786852,2.26096239,4422.9,4421.3,0.001]
[1755272787056,4.86244412,4424.1,4421.3,0.001]
[1755272787057,2.26101327,4422.8,4421.3,0.001]
[1755272787361,1.64363181,4423.1,4421.3,0.001]
[1755272787656,1.64363181,4423.1,4421.3,0.27196298]
[1755272787855,4.195,4423.5,4421.4,0.02261727]
[1755272788013,0.01883181,4423.8,4421.4,2.0768]
[1755272788214,2.26055112,4423.7,4421.4,2.0768]
[1755272788525,0.01883181,4423.8,4421.4,2.0768]
[1755272788743,0.01883181,4423.6,4421.9,2.26143262]
[1755272788939,2.26065332,4423.5,4422.0,0.22614326]
[1755272789120,2.26065332,4423.5,4422.2,2.2612702]
[1755272789323,0.01883181,4423.5,4422.0,0.67284326]
[1755272789830,3.0,4423.3,4421.3,0.001]
[1755272790033,4.20583181,4423.2,4421.3,0.001]
[1755272790241,0.01883181,4423.1,4421.4,2.26171503]
[1755272790545,0.36926982,4423.0,4421.3,0.001]
[1755272790751,2.26116401,4422.6,4421.4,2.26172705]
[1755272790930,0.36926982,4423.0,4421.4,2.26172705]
[1755272791133,0.01883181,4422.9,4421.3,0.001]
[1755272791353,2.26132861,4422.2,4421.3,0.001]
[1755272791556,2.26142017,4422.0,4421.3,0.001]
[1755272791864,0.01883181,4422.0,4421.3,0.001]
[1755272792084,2.2615264,4421.8,4421.3,0.001]
[1755272792359,0.01883181,4421.7,4421.3,0.001]
[1755272792525,2.28046061,4421.6,4421.3,0.001]
[1755272792727,1.6248,4421.7,4421.3,0.001]
[1755272792922,6.44037179,4422.1,4421.3,0.001]
[1755272793157,0.01883181,4422.0,4421.3,0.001]
[1755272793359,2.26148716,4421.9,4421.3,0.001]
[1755272793523,2.26157807,4421.7,4421.3,0.001]
[1755272793723,0.01883181,4422.0,4421.3,0.001]
[1755272793928,4.179,4422.1,4421.3,0.001]
[1755272794737,4.179,4422.1,4421.5,2.26167313]
[1755272794938,4.179,4422.1,4421.3,0.001]
[1755272795454,4.179,4422.1,4422.0,2.26142017]
[1755272795641,4.164,4423.2,4422.0,2.0768]
[1755272795844,4.164,4423.4,4422.5,2.26114222]
[1755272796045,4.164,4423.4,4422.0,0.4467]
[1755272796232,4.164,4423.4,4422.1,0.20768]
[1755272796431,7.0518,4424.5,4424.4,2.26019347]
[1755272796432,5.427,4424.5,4424.4,2.26019347]
[1755272796725,5.427,4424.5,4422.1,1.88518]
[1755272796726,5.5398,4424.5,4424.3,2.26023437]
[1755272796931,5.5398,4424.5,4423.7,2.26055112]
[1755272797244,9.7028,4424.5,4424.4,2.26019347]
[1755272799875,4.17083181,4425.2,4423.2,0.4533]
[1755272800171,2.2602305,4424.4,4422.5,2.26116449]
[1755272800356,0.01883181,4424.3,4423.0,0.1128]
[1755272800558,0.1128,4423.7,4423.6,2.26060222]
[1755272800764,0.1128,4423.7,4423.5,2.26064767]
[1755272800937,4.149,4423.6,4423.0,0.1128]
[1755272801138,0.01883181,4423.5,4421.9,0.4533]
[1755272801462,0.1128,4422.9,4422.7,2.26102383]
[1755272801640,4.16383181,4422.8,4421.1,0.4533]
[1755272801835,0.1128,4422.4,4421.7,0.1128]
[1755272802162,0.1128,4422.4,4420.9,1.6775]
[1755272802163,0.1128,4422.1,4422.0,2.26142017]
[1755272802369,4.144,4422.3,4421.5,0.4533]
[1755272802578,4.144,4422.3,4422.2,2.26131789]
[1755272802877,4.149,4422.3,4422.2,2.26129492]
[1755272803084,4.149,4422.3,4421.8,0.1128]
[1755272803379,0.1128,4422.1,4421.5,0.1128]
[1755272803584,0.1128,4422.1,4421.3,0.1138]
[1755272803790,0.1128,4422.1,4421.8,2.26149276]
[1755272803988,4.146,4422.0,4421.3,0.1138]
[1755272804145,4.146,4422.0,4421.3,2.37553491]
[1755272804356,4.146,4422.0,4421.3,0.1138]
[1755272804679,4.143,4421.9,4421.7,2.26155573]
[1755272804862,4.143,4421.9,4421.8,2.26152245]
[1755272805571,4.138,4421.9,4421.8,2.26152245]
[1755272806173,3.0,4424.0,4422.9,2.26091552]
[1755272806494,4.14983181,4423.9,4421.8,0.4533]
[1755272806683,4.14983181,4423.9,4423.3,2.26071593]
[1755272806889,0.01883181,4424.0,4422.3,0.4533]
[1755272807210,4.133,4423.9,4422.3,0.4533]
[1755272807369,1.99633181,4423.8,4421.4,0.4533]
[1755272807566,1.99633181,4423.8,4420.8,2.26302868]
[1755272807567,2.26090562,4423.1,4421.1,2.2618793]
[1755272807780,3.0,4422.9,4420.8,0.001]
[1755272808034,12.76100989,4422.5,4420.8,0.001]
[1755272808172,2.26147131,4421.9,4420.8,0.001]
[1755272808373,3.0,4421.7,4420.8,0.001]
[1755272808576,1.44883181,4421.6,4420.8,0.001]
[1755272808805,0.55,4421.1,4419.9,0.001]
[1755272809009,2.26234107,4420.2,4419.9,0.001]
[1755272809306,6.16327377,4421.0,4419.9,0.001]
[1755272809307,4.15183181,4420.1,4419.9,0.001]
[1755272809526,3.08955199,4420.1,4419.9,0.001]
[1755272809674,8.36994343,4420.0,4419.9,0.001]
[1755272809869,1.09522018,4420.1,4419.9,0.001]
[1755272810089,4.14983181,4420.0,4419.9,0.001]
[1755272810416,4.56481499,4420.0,4419.9,0.001]
[1755272810574,4.127,4420.0,4419.9,0.001]
[1755272810774,0.01883181,4420.3,4419.9,0.001]
[1755272811119,0.01883181,4420.4,4419.9,0.001]
[1755272811327,4.125,4420.2,4419.9,0.001]
[1755272811468,0.01883181,4420.1,4419.9,0.001]
[1755272811676,2.77378094,4420.1,4419.9,0.001]
[1755272811899,7.81938539,4420.0,4419.9,0.001]
[1755272812103,7.70667432,4420.0,4419.9,0.001]
[1755272812319,7.70667432,4420.0,4419.9,0.0018]
[1755272812678,8.86955824,4420.0,4419.9,0.0018]
[1755272812868,12.60581071,4420.0,4419.9,0.0018]
[1755272813214,11.15498336,4420.0,4419.9,0.0018]
[1755272813507,1.05548974,4420.0,4419.9,0.0018]
[1755272813706,4.13783181,4420.0,4419.9,0.0018]
[1755272814414,0.58675885,4420.5,4419.9,0.0018]
[1755272814708,0.58675885,4421.0,4420.5,2.26214035]
[1755272814892,0.58675885,4421.0,4419.9,0.4551]
[1755272814893,4.114,4420.9,4419.9,0.0018]
[1755272815094,2.28087542,4420.8,4419.9,0.0018]
[1755272815300,2.26220142,4420.5,4419.9,0.0018]
[1755272815469,0.60559066,4420.4,4419.9,0.0018]
[1755272815674,6.37628988,4420.3,4419.9,0.0018]
[1755272815872,0.4875627,4420.2,4419.9,0.0018]
[1755272816193,0.1128,4420.0,4419.9,0.0018]
[1755272816597,0.13163181,4420.0,4419.9,0.0018]
[1755272816802,0.1128,4420.0,4419.9,0.0018]
[1755272817011,4.114,4420.3,4419.9,0.0018]
[1755272817183,0.1128,4420.0,4419.9,0.0018]
[1755272817386,4.114,4420.3,4420.0,2.1308]
[1755272817594,0.1128,4420.2,4420.1,4.39319225]
[1755272817796,0.1128,4420.2,4420.1,3.93989225]
[1755272818720,0.1128,4420.2,4420.1,4.39319225]
[1755272818920,0.46873089,4421.4,4421.0,2.26190566]
[1755272819122,4.101,4420.9,4420.8,2.26203402]
[1755272819335,0.679814,4421.5,4419.9,0.0018]
[1755272819336,4.1,4421.2,4420.7,0.1128]
[1755272819837,4.1,4421.2,4420.9,2.26198285]
[1755272820003,4.1,4421.2,4421.0,2.2619308]
[1755272820400,4.1,4421.2,4420.7,0.5661]
[1755272820920,0.46873089,4421.7,4421.1,0.1128]
[1755272821095,1.16288392,4422.7,4421.1,0.1128]
[1755272821096,0.58675885,4423.1,4421.2,2.39089657]
[1755272821296,0.1128,4422.9,4422.3,0.1128]
[1755272822004,0.1128,4422.9,4422.8,2.26101112]
[1755272822224,0.1128,4422.9,4422.4,2.26116566]
[1755272822535,0.1128,4422.9,4422.3,0.1128]
[1755272822750,0.58675885,4424.1,4422.5,2.1308]
[1755272823035,4.087,4424.0,4423.9,2.26044892]
[1755272823195,4.087,4424.0,4423.9,2.71374892]
[1755272823390,4.087,4424.0,4423.9,4.50404892]
[1755272824016,0.002,4424.5,4424.4,2.26019347]
[1755272824408,0.002,4424.5,4424.4,4.39099347]
[1755272824610,0.002,4424.9,4424.4,4.39099347]
[1755272824815,0.1128,4425.1,4424.2,2.26027158]
[1755272824816,4.086,4426.3,4426.0,2.25935729]
[1755272825016,9.516,4426.8,4426.1,2.2436]
[1755272825242,9.516,4426.8,4426.2,0.1128]
[1755272825546,1.26553585,4428.0,4427.0,2.25885847]
[1755272825830,0.1128,4427.7,4426.7,0.11106812]
[1755272825994,0.01883181,4427.6,4427.0,0.1128]
[1755272826191,0.1128,4427.1,4426.4,0.1128]
[1755272826394,4.082,4427.0,4426.4,0.1128]
[1755272826641,4.082,4427.0,4426.5,2.25911619]
[1755272826843,4.082,4427.0,4426.4,0.1128]
[1755272827143,0.43831181,4426.9,4425.1,0.4505]
[1755272827294,2.25942387,4426.0,4425.0,0.1128]
[1755272827491,0.1128,4426.2,4425.0,0.1128]
[1755272827492,0.1128,4425.6,4425.0,0.1128]
[1755272827692,0.01883181,4425.5,4423.6,0.4505]
[1755272827899,0.01883181,4425.5,4421.9,2.26142259]
[1755272827900,2.2597338,4425.3,4422.9,0.4505]
[1755272828198,2.26003516,4424.8,4422.9,0.4505]
[1755272828396,2.26016092,4424.5,4422.5,2.26116449]
[1755272828631,6.369072,4424.4,4423.2,2.26077619]
[1755272828832,6.369072,4424.4,4422.6,0.27116645]
[1755272828833,4.09,4424.4,4423.3,2.26070925]
[1755272828993,2.260262,4424.3,4423.0,2.2608971]
[1755272829329,2.260262,4424.3,4422.4,0.4505]
[1755272829330,2.2604489,4424.0,4422.4,0.4505]
[1755272829558,0.01883181,4423.9,4422.4,0.4505]
[1755272829739,2.26062476,4423.6,4421.4,2.26172705]
[1755272829946,2.26070443,4423.4,4422.1,2.26136161]
[1755272830162,4.10083181,4423.5,4420.7,2.26205489]
[1755272830163,0.01883181,4423.3,4420.7,2.26205489]
[1755272830314,5.26080665,4423.2,4420.5,1.5275]
[1755272830511,2.26131597,4422.3,4421.2,2.26181574]
[1755272830840,6.34332565,4422.2,4421.2,2.26178649]
[1755272831014,4.082,4422.2,4421.2,2.26182172]
[1755272831213,4.081,4422.1,4421.2,2.26178923]
[1755272831415,4.081,4422.0,4421.1,3.7893377]
[1755272831624,4.081,4422.0,4421.4,2.26172636]
[1755272831847,4.081,4422.0,4421.6,2.26161597]
[1755272832056,0.58594374,4423.5,4421.7,1.5275]
[1755272832221,4.08,4423.4,4421.7,1.978]
[1755272832423,4.08,4423.3,4421.9,2.26147131]
[1755272832634,4.08,4423.2,4422.7,2.26101749]
[1755272832956,4.88,4423.1,4421.8,0.1978]
[1755272833159,4.08,4423.0,4422.7,2.26105657]
[1755272833322,0.8,4423.1,4423.0,2.26090888]
[1755272833518,0.8,4423.1,4423.0,4.46499977]
[1755272833720,4.08,4423.9,4423.1,2.26085776]
[1755272833929,0.002,4425.0,4423.1,2.26085776]
[1755272833930,4.08,4424.7,4423.2,4.23880256]
[1755272834131,4.08,4424.7,4423.3,2.47948935]
[1755272834367,4.08,4424.7,4424.6,2.2600913]
[1755272834660,0.002,4425.0,4424.9,2.25993807]
[1755272834846,4.082,4425.0,4423.4,2.26068584]
[1755272835048,0.01883181,4424.9,4423.3,1.978]
[1755272835259,4.082,4425.0,4423.4,2.45850443]
[1755272835462,4.082,4425.0,4424.6,2.26008249]
[1755272835633,0.002,4425.0,4424.9,2.25993807]
[1755272836157,4.08,4425.2,4425.1,2.25983593]
[1755272837148,4.08,4425.2,4423.9,1.978]
[1755272837362,6.33983383,4425.2,4424.0,2.26034876]
[1755272837663,0.1128,4424.8,4424.5,2.26013627]
[1755272837964,5.25929286,4426.2,4424.9,0.1128]
[1755272838177,0.449,4426.7,4424.7,0.1128]
[1755272838178,2.25908333,4426.6,4424.7,0.1128]
[1755272838469,0.1128,4425.7,4425.0,0.1128]
[1755272838668,4.079,4426.2,4424.6,1.978]
[1755272838978,0.1128,4426.0,4425.4,0.1128]
[1755272839499,6.33828101,4426.2,4425.3,2.25972558]
[1755272839704,0.1128,4425.7,4425.0,0.1128]
[1755272839870,0.01783181,4425.6,4423.7,0.4505]
[1755272840070,2.25963168,4425.5,4423.8,0.1978]
[1755272840267,0.1128,4424.8,4424.5,2.2601315]
[1755272840455,0.1128,4424.8,4424.2,0.1128]
[1755272840657,0.1128,4425.1,4424.2,0.1128]
[1755272840997,0.1128,4424.8,4424.2,0.1128]
[1755272841195,0.1128,4424.8,4424.6,2.26007617]
[1755272841495,0.1128,4424.8,4424.6,2.26004795]
[1755272841693,0.1128,4424.8,4423.1,2.26081226]
[1755272842003,0.1128,4424.8,4423.5,0.001]
[1755272842004,2.2605796,4423.7,4423.5,0.001]
[1755272842219,6.35643403,4423.6,4423.5,0.001]
[1755272842499,8.42630222,4423.6,4423.5,0.001]
[1755272842708,0.8,4423.6,4423.5,0.001]
[1755272843236,4.878,4423.6,4423.5,0.001]
[1755272843368,4.9908,4423.6,4423.5,0.001]
[1755272843770,7.25140222,4423.6,4423.5,0.001]
[1755272844011,10.83319429,4423.6,4423.5,0.001]
[1755272844307,13.83319429,4423.6,4423.5,0.001]
[1755272844655,2.85589207,4423.6,4421.8,0.1128]
[1755272844865,2.85589207,4423.6,4419.8,3.0]
[1755272844866,0.1128,4422.8,4422.6,2.26109159]
[1755272845172,0.1128,4422.8,4422.1,0.1128]
[1755272845372,4.078,4422.7,4422.6,2.26111166]
[1755272845595,4.078,4422.7,4422.1,2.26136759]
[1755272845798,4.078,4422.7,4422.5,2.26116005]
[1755272846118,0.1128,4423.0,4422.4,0.1128]
[1755272846326,0.8,4423.6,4419.7,4.078]
[1755272846327,0.9128,4423.6,4422.7,2.26106224]
[1755272846608,4.078,4423.7,4422.9,0.1128]
[1755272846770,4.078,4423.7,4423.6,2.37340222]
[1755272846975,0.78271109,4425.8,4424.0,2.26039783]
[1755272846976,0.1128,4425.3,4424.0,2.26039783]
[1755272847173,4.078,4425.0,4424.0,2.37319783]
[1755272847506,4.078,4425.0,4424.0,2.82369783]
[1755272848199,4.078,4424.4,4424.0,2.82369783]
[1755272848963,1e-08,4424.1,4424.0,4.23839783]
[1755272849207,1e-08,4424.1,4424.0,4.35119783]
[1755272849707,1e-08,4424.1,4424.0,5.26215401]
[1755272850074,1e-08,4424.1,4424.0,3.73465401]
[1755272850274,4.07300001,4425.0,4424.0,2.71089783]
[1755272850495,4.07300001,4425.0,4424.9,2.25993807]
[1755272850823,0.449,4425.9,4425.2,2.25978486]
[1755272850824,4.077,4425.3,4425.2,2.25978486]
[1755272851034,4.077,4425.3,4424.9,0.1128]
[1755272851185,4.077,4425.3,4424.9,2.37272964]
[1755272851638,4.077,4425.3,4422.8,4.077]
[1755272851639,0.449,4425.2,4424.7,2.25998944]
[1755272851926,0.449,4425.1,4424.8,2.25996496]
[1755272852108,0.1128,4425.2,4424.9,2.25990876]
[1755272852311,4.077,4425.0,4424.9,2.25990876]
[1755272852628,4.077,4425.0,4424.5,0.1128]
[1755272852944,0.449,4424.9,4423.4,2.26070443]
[1755272853094,0.449,4424.9,4422.9,2.26092078]
[1755272853095,0.1128,4424.7,4423.8,0.1128]
[1755272853613,0.01783181,4424.6,4423.8,0.1128]
[1755272853928,0.01783181,4424.6,4422.8,0.4505]
[1755272853929,0.58594374,4424.4,4422.8,2.26100422]
[1755272854134,0.46683181,4424.3,4421.9,1.5275]
[1755272854432,2.26037451,4424.1,4423.2,2.26076413]
[1755272854636,4.75632063,4424.0,4423.5,2.26060556]
[1755272854782,4.076,4423.9,4423.6,2.26059925]
[1755272854980,0.92100422,4424.3,4422.4,2.26121562]
[1755272855217,4.076,4423.8,4422.4,2.26121562]
[1755272855431,4.076,4423.8,4423.6,2.26055425]
[1755272855613,4.076,4423.8,4423.7,2.26055112]
[1755272855817,4.076,4423.8,4422.4,2.26121562]
[1755272855990,4.076,4423.8,4423.7,2.26055112]
[1755272856694,4.076,4423.8,4422.6,2.26111337]
[1755272857043,4.076,4423.8,4422.4,2.26121562]
[1755272857198,4.076,4423.7,4422.3,0.4505]
[1755272857406,4.076,4423.7,4422.5,0.4319]
[1755272857600,4.076,4423.7,4423.6,2.26060222]
[1755272858199,4.066,4423.7,4423.6,2.26060222]
[1755272858418,4.076,4423.7,4422.9,2.26096]
[1755272858620,4.076,4423.7,4422.6,2.26111337]
[1755272858621,4.076,4423.7,4423.6,2.26060222]
[1755272859122,4.5426,4423.7,4422.0,2.26142017]
[1755272859439,2.84619444,4424.3,4423.4,2.26069081]
[1755272859440,4.075,4423.6,4423.4,2.26069081]
[1755272859616,0.4075,4423.5,4422.1,0.4319]
[1755272859821,4.075,4423.6,4423.3,2.26075114]
[1755272860023,0.4666,4423.5,4423.0,2.2608972]
[1755272860324,2.11413181,4423.4,4421.4,2.26172705]
[1755272860520,2.70007555,4423.4,4421.3,2.6936685]
[1755272860741,2.26106973,4422.7,4421.9,2.26144262]
[1755272860943,4.075,4422.6,4422.3,2.26126047]
[1755272861548,4.075,4422.6,4421.5,2.2616759]
[1755272861703,0.95086394,4423.3,4422.0,0.001]
[1755272861704,4.075,4422.5,4422.0,0.001]
[1755272861905,6.33620756,4422.5,4422.0,0.001]
[1755272862157,2.26134375,4422.2,4422.0,0.001]
[1755272862316,2.74775257,4422.4,4422.0,0.0018]
[1755272862317,2.27920084,4422.1,4422.0,0.0018]
[1755272862518,2.74580084,4422.1,4422.0,0.0018]
[1755272862757,7.37550084,4422.1,4422.0,0.0018]
[1755272863056,10.28855528,4422.1,4422.0,0.0018]
[1755272863344,9.50584419,4422.1,4422.0,0.0018]
[1755272863506,9.71051583,4422.1,4422.0,0.0018]
[1755272863708,2.26193168,4421.0,4420.9,0.001]
[1755272863945,6.44973168,4421.0,4420.9,0.001]
[1755272864251,12.88949763,4421.0,4420.9,0.001]
[1755272864415,13.68949763,4421.0,4420.9,0.001]
[1755272864625,9.61449763,4421.0,4420.9,0.001]
[1755272864821,13.68949763,4421.0,4420.9,0.001]
[1755272865008,1.38510842,4421.0,4420.9,0.001]
[1755272865210,5.00563181,4421.0,4420.9,0.001]
[1755272865449,7.71633168,4421.0,4420.9,0.001]
[1755272865658,1.38331638,4421.0,4420.9,0.001]
[1755272865950,0.9128,4421.0,4420.9,0.001]
[1755272866119,4.9878,4421.0,4420.9,0.001]
[1755272866323,4.875,4421.0,4420.9,0.001]
[1755272866632,4.075,4421.0,4420.9,0.001]
[1755272866838,4.075,4421.0,4420.9,2.26298285]
[1755272867054,0.1128,4421.1,4421.0,2.26193168]
[1755272867214,0.48824716,4422.1,4420.9,0.001]
[1755272867412,0.1128,4421.4,4420.9,0.001]
[1755272867643,4.075,4421.3,4421.1,2.26183318]
[1755272868018,4.075,4421.3,4420.9,0.001]
[1755272868344,0.1128,4421.4,4420.9,0.001]
[1755272868547,0.4697682,4422.2,4420.9,0.001]
[1755272868548,4.075,4421.3,4421.0,2.3747268]
[1755272868718,4.075,4421.2,4421.0,0.1128]
[1755272869217,4.075,4421.1,4421.0,2.37473168]
[1755272869412,0.1128,4421.6,4421.0,0.1128]
[1755272869722,4.074,4421.5,4421.0,0.1128]
[1755272869928,4.074,4421.5,4420.9,0.001]
[1755272869929,0.8,4421.1,4420.9,0.001]
[1755272870127,2.37473168,4421.0,4420.9,0.001]
[1755272870447,4.48886349,4421.0,4420.9,0.001]
[1755272870651,4.47103168,4421.0,4420.9,0.001]
[1755272870857,5.27131212,4421.0,4420.9,0.001]
[1755272871056,3.0,4420.9,4419.9,0.001]
[1755272871212,4.09183181,4420.8,4419.9,0.001]
[1755272871609,0.4666,4420.7,4419.9,0.001]
[1755272871847,5.27996817,4420.6,4420.5,0.001]
[1755272872045,9.3364401,4420.6,4420.5,0.001]
[1755272872561,5.26244343,4420.0,4419.9,1e-08]
[1755272872715,2.26301017,4418.9,4417.7,0.4319]
[1755272873052,0.1128,4418.8,4418.1,0.1128]
[1755272873210,4.074,4418.7,4418.1,2.3762038]
[1755272873423,2.2626482,4419.6,4418.3,0.1128]
[1755272873424,4.074,4418.6,4418.3,0.1128]
[1755272873635,4.074,4418.5,4418.3,0.1128]
[1755272873825,4.074,4418.4,4418.1,0.1128]
[1755272874222,4.074,4418.4,4417.4,0.003]
[1755272874223,4.1868,4418.4,4417.8,0.1128]
[1755272874428,2.2633173,4418.3,4417.4,2.26674653]
[1755272874730,2.263535,4417.9,4417.5,0.1128]
[1755272875034,5.433,4418.0,4417.4,0.003]
[1755272875231,4.09183181,4417.9,4417.4,0.003]
[1755272875432,4.074,4417.9,4417.4,0.003]
[1755272875834,0.1128,4417.7,4417.4,0.003]
[1755272876059,0.01783181,4417.6,4417.4,0.003]
[1755272876221,0.1128,4417.7,4417.4,0.003]
[1755272876426,4.074,4417.6,4417.4,0.003]
[1755272876968,2.26382631,4417.3,4416.0,0.1136]
[1755272877264,0.1136,4416.1,4415.0,0.1136]
[1755272877558,4.074,4416.0,4415.4,0.191754]
[1755272877962,5.434,4416.0,4415.4,0.191754]
[1755272878161,5.434,4416.0,4415.4,0.078154]
[1755272878352,0.1136,4415.7,4415.4,0.078154]
[1755272878530,0.1136,4415.9,4415.4,0.078154]
[1755272878927,4.075,4415.8,4415.4,0.078154]
[1755272879467,4.074,4415.7,4415.5,2.26470368]
[1755272879762,5.434,4416.0,4415.4,0.078154]
[1755272879763,4.074,4415.6,4415.4,0.078154]
[1755272880264,0.01783181,4415.5,4415.4,0.078154]
[1755272880436,0.4666,4415.5,4415.4,0.078154]